bitfinex/quotes_ETHUSD_20250517
["timestamp","ask_amount","ask_price","bid_price","bid_amount"]
[1747466958613,2.60792976,2503.9,2503.7,3.99406719]
[1747466960012,0.8036,2503.8,2503.5,7.571]
[1747466960310,0.8036,2503.8,2503.4,21.23353436]
[1747466960311,0.8036,2503.6,2503.4,17.239]
[1747466960610,2.21716903,2503.5,2503.4,17.239]
[1747466960787,1.57944524,2503.5,2503.4,24.81]
[1747466961175,1.57944524,2503.5,2503.4,28.80456738]
[1747466961694,1.57944524,2503.6,2503.5,3.99440782]
[1747466962077,1.57944524,2503.6,2503.5,11.56240782]
[1747466963883,1.90882318,2503.9,2503.7,3.99401763]
[1747466964109,1.57944524,2503.8,2503.5,11.56237958]
[1747466964293,1.57944524,2503.6,2503.5,3.99425094]
[1747466969212,1.57944524,2503.6,2503.5,11.56325094]
[1747466970924,2.37764524,2503.6,2503.4,17.239]
[1747466971231,0.63718121,2503.5,2503.4,17.239]
[1747466971418,2.37764524,2503.6,2503.4,17.239]
[1747466972491,2.37764524,2503.6,2503.4,21.23356385]
[1747466974937,2.37764524,2503.6,2503.4,17.239]
[1747466975941,2.37764524,2503.6,2503.4,21.23356512]
[1747466976562,1.57944524,2503.6,2503.5,3.99440782]
[1747466982445,1.57944524,2503.8,2503.7,3.99408874]
[1747466982614,1.57944524,2503.8,2503.7,11.56308874]
[1747466992457,1.57944524,2504.1,2504.0,3.99361022]
[1747466992756,1.57944524,2504.2,2504.1,3.99345074]
[1747466996160,2.96122538,2504.3,2504.2,3.99329127]
[1747466996349,2.96122538,2504.3,2504.2,11.55929127]
[1747467000160,2.96122538,2504.3,2504.2,7.566]
[1747467000351,4.73834546,2504.3,2504.2,11.55929127]
[1747467001367,3.74982538,2504.3,2504.2,11.55929127]
[1747467001665,2.96122538,2504.3,2504.2,11.55929127]
[1747467006874,3.71632538,2504.3,2504.2,7.566]
[1747467010501,2.96122538,2504.3,2504.2,11.55929127]
[1747467014274,2.96122538,2504.3,2504.1,3.99342135]
[1747467014475,2.0335123,2504.2,2504.1,3.99342135]
[1747467014676,2.0335123,2504.2,2504.1,11.55842135]
[1747467014882,1.57944524,2504.2,2504.1,11.55842135]
[1747467020162,2.33374524,2504.2,2504.1,7.565]
[1747467020890,0.7543,2504.2,2504.1,7.565]
[1747467021099,1.57944524,2504.2,2504.1,7.565]
[1747467021301,2.33374524,2504.2,2504.1,7.565]
[1747467021504,3.26254297,2504.2,2504.1,7.565]
[1747467022262,1.68309773,2504.2,2504.1,7.565]
[1747467022463,3.26254297,2504.2,2504.1,7.565]
[1747467025388,3.26254297,2504.2,2504.1,11.55845074]
[1747467025389,1.57944524,2504.2,2504.1,11.55845074]
[1747467026898,1.57944524,2504.2,2504.1,7.565]
[1747467027093,1.57944524,2504.2,2503.9,4.74373685]
[1747467027094,2.37204524,2504.2,2503.9,3.99368992]
[1747467027301,0.7926,2504.2,2504.1,7.561]
[1747467027495,2.37204524,2504.2,2504.1,7.561]
[1747467027902,3.3046768,2504.2,2504.1,7.561]
[1747467029721,4.88412204,2504.2,2503.9,7.561]
[1747467030008,1.57944524,2504.0,2503.9,11.55476971]
[1747467031714,3.15889048,2504.0,2503.7,3.99408158]
[1747467031925,0.8178,2503.9,2503.8,7.561]
[1747467033184,9.21546905,2503.9,2503.8,7.561]
[1747467034202,9.21546905,2503.9,2503.5,3.99432489]
[1747467034412,9.21546905,2503.9,2503.7,7.562]
[1747467034612,1.57944524,2503.8,2503.7,7.562]
[1747467035918,1.57944524,2503.8,2503.7,11.55608874]
[1747467036123,1.57944524,2503.8,2503.7,7.562]
[1747467036305,1.57944524,2503.8,2503.7,11.55608874]
[1747467038419,1.57944524,2503.8,2503.7,7.562]
[1747467039632,1.57944524,2503.8,2503.7,11.55608874]
[1747467039825,1.57944524,2503.8,2503.7,12.38658874]
[1747467041135,1.57944524,2503.8,2503.7,11.55608874]
[1747467066750,7.31912351,2503.8,2503.7,7.562]
[1747467067392,11.32519429,2503.8,2503.3,7.557]
[1747467067588,1.57944524,2503.4,2503.3,7.557]
[1747467067882,1.57944524,2503.4,2503.2,24.801]
[1747467068035,3.01226131,2503.4,2503.2,24.801]
[1747467068229,0.7543,2503.3,2503.2,24.801]
[1747467069031,0.7543,2503.3,2503.2,7.557]
[1747467072544,13.29902696,2503.3,2503.2,7.557]
[1747467073048,4.77796558,2503.1,2502.8,7.558]
[1747467073265,1.57944524,2502.9,2502.8,7.558]
[1747467074079,8.0,2503.3,2502.8,8.3222]
[1747467074250,1.57944524,2502.9,2502.8,12.31772501]
[1747467074871,1.57944524,2502.9,2502.8,7.559]
[1747467075066,1.57944524,2502.9,2502.8,11.55452501]
[1747467075667,1.57944524,2502.9,2502.8,7.559]
[1747467076379,1.57944524,2502.9,2502.8,11.55452501]
[1747467077786,1.57944524,2502.9,2502.8,7.559]
[1747467077986,1.57944524,2502.9,2502.8,11.55452501]
[1747467078408,6.68630171,2503.4,2502.9,0.8093]
[1747467078409,2.69172318,2503.4,2502.9,0.8093]
[1747467078687,1.57944524,2503.2,2503.1,3.99504614]
[1747467079995,1.57944524,2503.2,2503.1,4.80434614]
[1747467080216,2.73672318,2503.9,2503.5,3.99432959]
[1747467080500,4.82167393,2503.9,2503.6,7.559]
[1747467080712,0.8279,2503.9,2503.6,11.55317179]
[1747467080860,0.8279,2504.1,2503.8,3.99392922]
[1747467081066,0.74203625,2504.0,2503.8,3.99392922]
[1747467081711,1.57944524,2503.9,2503.8,3.99392922]
[1747467082495,1.57944524,2503.9,2503.7,4.80331281]
[1747467082862,1.57944524,2503.9,2503.8,3.99392922]
[1747467086874,1.57944524,2504.2,2503.7,4.80334642]
[1747467087083,1.57944524,2504.0,2503.7,4.80334642]
[1747467087281,1.57944524,2504.0,2503.9,3.99376971]
[1747467088805,1.57944524,2504.0,2503.9,11.54476971]
[1747467089333,2.96122538,2504.3,2504.1,4.74859469]
[1747467089605,1.57944524,2504.2,2504.1,4.74859469]
[1747467092928,2.96122538,2504.3,2504.2,3.99329127]
[1747467093092,4.54067062,2504.3,2504.2,3.99329127]
[1747467094428,2.96122538,2504.3,2504.2,3.99329127]
[1747467094612,4.54067062,2504.3,2504.2,3.99329127]
[1747467096515,2.96122538,2504.3,2504.2,3.99329127]
[1747467096715,2.96122538,2504.3,2504.2,4.74859127]
[1747467101395,2.96122538,2504.3,2504.2,3.99329127]
[1747467101589,2.96122538,2504.3,2504.2,11.53929127]
[1747467102419,2.96122538,2504.3,2504.2,12.33029127]
[1747467103700,2.96122538,2504.3,2504.2,11.53829127]
[1747467113463,2.96122538,2504.3,2504.2,12.35809127]
[1747467117732,2.96122538,2504.3,2504.2,29.59709127]
[1747467121007,2.96122538,2504.3,2504.2,21.23229127]
[1747467121332,2.96122538,2504.3,2504.2,36.31429127]
[1747467123330,2.96122538,2504.3,2504.2,28.77429127]
[1747467123521,4.54067062,2504.3,2504.2,28.77429127]
[1747467123721,4.54067062,2504.3,2504.2,36.31429127]
[1747467124448,6.2892907,2504.3,2504.2,24.781]
[1747467126063,0.7601,2504.1,2503.6,3.99413285]
[1747467126235,3.99329127,2504.2,2503.5,3.99431208]
[1747467126236,1.57944524,2503.7,2503.5,3.99433767]
[1747467126438,0.7601,2503.6,2503.5,3.99433767]
[1747467126616,0.7601,2503.6,2503.5,11.53633767]
[1747467126817,0.99405452,2503.6,2503.5,7.542]
[1747467127151,0.7601,2503.5,2503.4,17.71284458]
[1747467127486,12.77602696,2503.3,2502.6,5.27951548]
[1747467127656,8.0,2503.2,2502.7,3.99558496]
[1747467127855,1.57944524,2502.8,2502.6,3.99581647]
[1747467128046,0.7813,2502.7,2502.3,17.239]
[1747467128219,1.57944524,2502.4,2502.3,17.239]
[1747467129163,1.57944524,2502.4,2502.3,21.23532338]
[1747467130459,0.7813,2502.7,2502.3,21.2352757]
[1747467130656,1.57944524,2502.4,2502.3,21.2352757]
[1747467131645,0.7813,2502.7,2502.6,3.99584432]
[1747467131846,2.36074524,2502.7,2502.6,3.99584432]
[1747467132048,2.36074524,2502.7,2502.6,11.54084432]
[1747467132563,7.541,2503.2,2502.9,3.99534139]
[1747467132759,1.57944524,2503.0,2502.9,3.99534139]
[1747467133265,1.63223,2503.1,2503.0,3.99520575]
[1747467133565,1.57944524,2503.1,2503.0,3.99520575]
[1747467134987,1.57944524,2503.1,2502.6,7.545]
[1747467135127,0.7813,2503.3,2502.8,3.99544366]
[1747467135456,1.2775936,2503.2,2502.9,3.99535358]
[1747467135663,1.57944524,2503.0,2502.9,3.99535358]
[1747467136021,1.57944524,2503.0,2502.8,3.99551322]
[1747467136221,1.2775936,2503.2,2502.8,3.99551322]
[1747467136222,1.57944524,2502.9,2502.8,3.99551322]
[1747467137502,1.57944524,2502.9,2502.7,11.54063596]
[1747467137876,1.57944524,2502.9,2502.4,3.99616368]
[1747467138021,1.57944524,2502.5,2502.3,17.239]
[1747467138234,1.57944524,2502.5,2502.4,7.546]
[1747467138968,2.91825931,2502.5,2502.4,7.546]
[1747467139149,0.55,2502.4,2502.0,7.546]
[1747467139344,1.57944524,2502.1,2502.0,7.546]
[1747467139970,2.36074524,2502.1,2502.0,7.546]
[1747467141455,0.7813,2502.1,2502.0,7.546]
[1747467141755,0.7813,2502.1,2502.0,11.54280255]
[1747467142151,1.18826084,2502.1,2502.0,7.546]
[1747467142351,5.18492118,2502.1,2501.9,7.547]
[1747467142599,3.28830844,2502.0,2501.9,7.547]
[1747467143586,1.18826084,2502.1,2502.0,3.99680255]
[1747467144952,0.40696084,2502.1,2502.0,3.99680255]
[1747467145299,0.40696084,2502.1,2501.9,11.54395516]
[1747467145888,0.40696084,2502.1,2502.0,3.99680255]
[1747467146392,0.40696084,2502.1,2501.9,11.54389618]
[1747467148303,0.40696084,2502.1,2501.9,7.547]
[1747467148493,0.8268,2502.0,2501.9,7.547]
[1747467148796,2.22868102,2502.0,2501.9,7.547]
[1747467151595,6.22548357,2502.0,2501.9,7.547]
[1747467151802,2.22868102,2502.0,2501.9,7.547]
[1747467152490,6.22548357,2502.0,2501.9,7.547]
[1747467152901,0.55,2501.8,2501.5,24.792]
[1747467153063,3.28830844,2501.6,2501.5,24.792]
[1747467153694,4.05370844,2501.6,2501.5,24.792]
[1747467153916,3.28830844,2501.6,2501.5,28.78960143]
[1747467154486,0.55,2501.8,2501.6,3.99740933]
[1747467154685,1.36666249,2501.7,2501.6,3.99740933]
[1747467155522,13.1166249,2501.9,2501.7,3.99727285]
[1747467156018,12.3512249,2501.9,2501.7,3.99721461]
[1747467157015,4.3512249,2501.9,2501.6,3.99740866]
[1747467157219,0.85188102,2502.0,2501.8,3.99712207]
[1747467157543,3.28830844,2502.1,2502.0,3.99680255]
[1747467160886,3.28830844,2502.1,2501.9,3.9968985]
[1747467162125,3.28830844,2502.1,2501.8,3.997095]
[1747467162332,3.28830844,2502.1,2501.9,3.99696103]
[1747467162710,3.28830844,2502.1,2501.8,3.9971172]
[1747467162909,0.32883084,2502.0,2501.8,3.9971172]
[1747467163226,0.8294,2501.9,2501.5,28.78955163]
[1747467163429,1.58150446,2501.7,2501.5,28.78955163]
[1747467163829,1.58150446,2501.7,2501.6,3.99744163]
[1747467169313,1.58150446,2501.7,2501.5,28.78956943]
[1747467169509,1.82259491,2501.7,2501.5,24.792]
[1747467170332,1.82259491,2501.7,2501.5,24.793]
[1747467170641,0.8294,2501.6,2501.5,24.793]
[1747467172567,0.8294,2501.6,2501.5,7.545]
[1747467174229,5.37684163,2501.6,2501.5,7.545]
[1747467174400,3.25315821,2501.6,2501.5,7.545]
[1747467177228,7.25059984,2501.6,2501.5,7.545]
[1747467177544,0.55,2501.5,2501.1,11.53919431]
[1747467177743,1.58150446,2501.2,2501.1,11.53919431]
[1747467180446,2.70315821,2501.6,2501.1,7.541]
[1747467180647,2.70315821,2501.6,2501.3,3.99776656]
[1747467180648,1.58150446,2501.4,2501.3,3.99776656]
[1747467183218,1.58150446,2501.4,2501.1,11.53908607]
[1747467184262,1.58150446,2501.4,2501.2,3.99803887]
[1747467184922,1.58150446,2501.4,2501.3,3.99792108]
[1747467186550,1.58150446,2501.4,2501.2,3.99801309]
[1747467187144,3.9983127,2501.1,2500.7,17.259]
[1747467187318,1.58150446,2500.8,2500.7,21.25788031]
[1747467187521,1.58150446,2501.2,2500.7,17.259]
[1747467187723,1.58150446,2501.2,2501.0,3.99830689]
[1747467188951,1.58150446,2501.2,2501.1,3.99824077]
[1747467189154,8.57819045,2501.4,2501.1,3.99824077]
[1747467189155,0.24109045,2501.4,2501.3,3.99792108]
[1747467189362,0.24109045,2501.4,2500.7,17.259]
[1747467189363,0.7981,2501.3,2500.8,3.99859149]
[1747467189657,1.58150446,2501.2,2501.0,3.99829041]
[1747467192065,2.37960446,2501.2,2500.9,11.53953207]
[1747467192264,1.58150446,2501.0,2500.9,11.53953207]
[1747467192574,1.58150446,2501.0,2500.9,7.541]
[1747467192734,1.81946491,2501.0,2500.9,7.541]
[1747467193861,2.36946491,2501.0,2500.9,7.541]
[1747467195970,9.90846491,2501.0,2500.7,21.25787486]
[1747467196185,1.58150446,2500.8,2500.7,21.25787486]
[1747467196941,1.58150446,2500.8,2499.4,6.49573988]
[1747467196942,7.36812196,2500.8,2500.1,3.99981734]
[1747467197248,1.58150446,2500.2,2500.1,3.99981734]
[1747467197446,1.58150446,2500.2,2500.0,3.99992349]
[1747467197953,1.58150446,2500.3,2500.0,3.99992349]
[1747467198148,1.58150446,2500.3,2500.0,4.81262349]
[1747467198353,1.58150446,2500.3,2500.1,3.99974769]
[1747467198536,1.58150446,2500.2,2500.1,3.99974769]
[1747467198744,1.58150446,2500.2,2500.0,3.99992516]
[1747467199769,1.58150446,2500.2,2499.8,4.81289533]
[1747467200069,1.58150446,2500.2,2500.1,3.99984]
[1747467200871,9.93140446,2500.5,2500.2,3.99956521]
[1747467201077,10.97954491,2500.5,2500.2,3.99956521]
[1747467201240,1.58150446,2500.5,2500.2,8.3173]
[1747467201578,1.58150446,2500.5,2500.3,3.99946922]
[1747467203076,1.58150446,2500.5,2500.4,3.9993601]
[1747467203454,1.58150446,2500.5,2500.3,3.99946183]
[1747467204052,1.58150446,2500.5,2500.2,7.543]
[1747467204254,1.58150446,2500.5,2500.3,3.99944526]
[1747467205945,1.58150446,2500.5,2500.2,7.543]
[1747467206145,1.58150446,2500.5,2500.3,3.99949278]
[1747467206581,1.58150446,2500.5,2500.2,11.54253513]
[1747467206883,1.58150446,2500.3,2500.2,11.54253513]
[1747467215690,1.58150446,2500.3,2500.2,7.543]
[1747467217070,1.81764491,2500.3,2500.2,7.543]
[1747467217472,2.36764491,2500.3,2500.2,7.543]
[1747467217660,1.81764491,2500.3,2500.0,11.53899503]
[1747467217867,1.58150446,2500.1,2500.0,11.53899503]
[1747467226520,0.7799,2500.4,2500.2,3.99968002]
[1747467226681,1.58150446,2500.3,2500.2,3.99968002]
[1747467226872,2.57134491,2500.3,2500.2,3.99968002]
[1747467229522,2.57134491,2500.3,2500.1,3.99980185]
[1747467230829,2.57134491,2500.3,2500.0,11.53896568]
[1747467231341,0.55,2500.0,2499.5,17.269]
[1747467231542,1.58150446,2499.6,2499.5,17.269]
[1747467232437,1.81584491,2499.6,2499.5,17.269]
[1747467232926,1.81584491,2499.6,2499.2,7.54]
[1747467233084,1.58150446,2499.3,2499.2,11.54126952]
[1747467233908,1.58150446,2499.3,2499.2,7.54]
[1747467234319,1.58150446,2499.3,2499.2,11.5412804]
[1747467234523,1.58150446,2499.5,2499.2,11.5412804]
[1747467234714,1.58150446,2499.5,2499.3,4.0010359]
[1747467234917,1.58150446,2499.5,2499.2,11.54119846]
[1747467235115,1.58150446,2499.5,2499.2,11.54126099]
[1747467235294,2.59287895,2499.5,2499.2,11.54117885]
[1747467235485,1.58150446,2499.5,2499.2,11.54117885]
[1747467235734,1.58150446,2499.5,2499.2,7.54]
[1747467236034,0.23434045,2499.6,2499.3,4.00112031]
[1747467236191,1.81584491,2499.6,2499.3,4.00112031]
[1747467238124,1.81584491,2499.6,2499.2,7.54]
[1747467238125,1.81584491,2499.6,2499.2,11.5411923]
[1747467238312,1.58150446,2499.4,2499.2,4.0011923]
[1747467238625,1.58150446,2499.4,2499.2,7.536]
[1747467240290,1.58150446,2499.4,2499.3,4.00112031]
[1747467240628,1.81584491,2499.6,2499.3,4.00112031]
[1747467240824,1.81584491,2499.6,2499.2,11.53721223]
[1747467241327,1.81584491,2499.6,2499.3,4.00105939]
[1747467242495,0.63777273,2499.8,2499.4,0.7966]
[1747467242693,0.63777273,2499.8,2499.7,4.00048005]
[1747467242893,0.63777273,2499.8,2499.7,11.53748005]
[1747467243401,2.21927719,2500.2,2499.8,0.7966]
[1747467243597,0.93559045,2500.2,2500.0,3.99994876]
[1747467243800,2.21927719,2500.2,2500.0,3.99994876]
[1747467244812,2.21927719,2500.2,2500.1,3.99984]
[1747467245349,0.63777273,2500.2,2500.1,3.99984]
[1747467246339,1.58150446,2500.5,2500.2,3.99953255]
[1747467246649,1.58150446,2500.5,2500.3,3.99948388]
[1747467248147,1.58150446,2500.5,2500.2,11.53665512]
[1747467249064,1.58150446,2500.3,2500.2,11.53665512]
[1747467249265,1.58150446,2500.3,2500.2,12.31035512]
[1747467252541,1.58150446,2500.3,2500.2,11.53668002]
[1747467257364,1.58150446,2500.3,2500.2,7.537]
[1747467258069,2.90187686,2500.3,2499.9,4.00006323]
[1747467258267,1.58150446,2500.0,2499.9,4.00006323]
[1747467268187,1.58150446,2500.0,2499.8,11.53529104]
[1747467268188,1.58150446,2500.0,2499.8,7.535]
[1747467268371,1.58150446,2500.0,2499.9,4.00016]
[1747467268872,1.58150446,2500.2,2500.1,3.99973669]
[1747467273407,1.58150446,2500.2,2500.0,3.99991726]
[1747467273605,1.58150446,2500.2,2499.9,4.00010513]
[1747467273903,1.58150446,2500.0,2499.9,4.00010513]
[1747467274617,1.58150446,2500.0,2499.5,0.7613]
[1747467274767,4.80018975,2500.1,2499.7,7.531]
[1747467274971,1.58150446,2499.8,2499.7,7.531]
[1747467275228,2.38180446,2499.8,2499.5,4.00077643]
[1747467275423,2.38180446,2499.8,2499.5,11.53177643]
[1747467275771,1.58150446,2499.6,2499.5,11.53177643]
[1747467277009,1.58150446,2499.6,2499.5,7.531]
[1747467277969,1.58150446,2499.6,2499.5,11.53180016]
[1747467280586,1.58150446,2499.6,2499.5,7.531]
[1747467281802,1.58150446,2499.6,2499.5,11.53180016]
[1747467283751,0.7927,2500.0,2499.5,8.3217]
[1747467283874,1.58150446,2500.1,2499.5,8.3217]
[1747467284075,1.58150446,2500.1,2499.9,4.0001133]
[1747467284282,3.37172491,2500.1,2499.8,4.00032002]
[1747467284506,1.58150446,2500.1,2499.9,4.00016]
[1747467285605,1.58150446,2500.2,2500.1,3.99984]
[1747467289840,1.58150446,2500.2,2500.0,3.99988791]
[1747467290045,1.58150446,2500.2,2499.9,4.00008395]
[1747467290344,1.58150446,2500.0,2499.9,4.00008395]
[1747467291834,1.58150446,2500.2,2500.1,3.9997471]
[1747467292539,1.58150446,2500.2,2500.0,3.99994788]
[1747467292740,1.58150446,2500.2,2500.1,3.99984]
[1747467294241,1.58150446,2500.2,2500.0,3.99995811]
[1747467295343,1.58150446,2500.2,2499.9,4.00008395]
[1747467295715,1.58150446,2500.2,2499.9,11.53108395]
[1747467296049,1.58150446,2500.2,2500.0,4.0]
[1747467297150,1.58150446,2500.2,2500.1,3.99984]
[1747467300330,1.58150446,2500.4,2500.3,3.99940738]
[1747467301051,1.58150446,2500.4,2500.1,3.9998085]
[1747467301233,1.58150446,2500.2,2500.1,3.99984]
[1747467301617,1.58150446,2500.2,2500.0,3.99993007]
[1747467303452,1.58150446,2500.2,2500.1,3.99984]
[1747467304166,1.58150446,2500.6,2500.4,3.99920196]
[1747467304450,1.58150446,2500.6,2500.4,3.9992015]
[1747467304957,1.58150446,2500.6,2500.5,3.99920015]
[1747467305692,1.58150446,2500.6,2500.4,3.99931751]
[1747467306062,2.57114491,2500.6,2500.2,3.99954155]
[1747467306359,0.7919,2500.3,2500.1,7.524]
[1747467306522,5.58118448,2500.2,2500.1,7.524]
[1747467306750,0.55,2500.1,2499.7,7.524]
[1747467307062,1.58150446,2499.8,2499.7,7.524]
[1747467307266,1.58150446,2499.8,2499.6,4.00063738]
[1747467307774,1.58150446,2499.8,2499.7,4.00048005]
[1747467313286,1.58150446,2499.8,2499.6,4.00059783]
[1747467314902,1.58150446,2499.8,2499.5,4.0007102]
[1747467315186,1.58150446,2499.6,2499.4,4.00089326]
[1747467315358,1.58150446,2499.5,2499.3,28.79505063]
[1747467315555,1.58150446,2499.5,2499.3,7.525]
[1747467316374,1.58150446,2499.5,2499.3,11.52611202]
[1747467317184,1.58150446,2499.5,2499.3,4.00111202]
[1747467317376,1.58150446,2499.5,2499.2,11.52625159]
[1747467317573,1.58150446,2499.3,2499.2,11.52625159]
[1747467318213,1.58150446,2499.3,2499.2,7.525]
[1747467318402,3.51024268,2499.3,2499.2,7.525]
[1747467318703,2.95200446,2499.3,2499.0,4.001591]
[1747467319011,2.95200446,2499.3,2499.1,4.00142079]
[1747467320509,2.95200446,2499.3,2499.2,4.0012804]
[1747467320510,0.8205,2499.3,2499.2,4.0012804]
[1747467320712,1.58150446,2499.3,2499.2,4.0012804]
[1747467320878,1.58150446,2499.5,2499.3,4.00101966]
[1747467321777,1.58150446,2499.5,2499.4,4.00096023]
[1747467322509,1.58150446,2499.5,2499.3,4.0010733]
[1747467322798,1.58150446,2499.5,2499.2,4.00125861]
[1747467323000,0.55,2499.5,2499.3,4.00108201]
[1747467323200,1.58150446,2499.4,2499.3,4.00108201]
[1747467327812,1.58150446,2499.4,2499.1,4.00139256]
[1747467328203,1.58150446,2499.2,2499.1,4.00139256]
[1747467332022,1.57749085,2499.2,2499.1,4.00139256]
[1747467335629,1.26735985,2499.2,2499.1,4.00139256]
[1747467336620,1.26735537,2499.2,2499.1,4.00139256]
[1747467338828,1.26735537,2499.2,2499.1,11.52139256]
[1747467339135,1.26735537,2499.2,2499.1,7.52]
[1747467339806,4.00152773,2499.1,2498.6,21.27315491]
[1747467340049,4.00267166,2498.4,2498.1,0.7672]
[1747467340230,0.7597,2498.1,2497.9,0.47573988]
[1747467340408,0.55,2498.5,2497.9,4.47902657]
[1747467340604,4.00185308,2498.9,2498.3,4.00260276]
[1747467340939,1.26735537,2498.4,2498.3,4.00260276]
[1747467341259,1.26735537,2498.6,2498.5,4.00240144]
[1747467341939,0.55,2498.5,2497.9,0.7672]
[1747467342237,1.26735537,2498.2,2498.1,4.00304231]
[1747467342830,1.26735537,2498.4,2498.3,4.00262521]
[1747467343207,1.81735537,2498.4,2498.1,4.00300843]
[1747467343403,1.26735537,2498.2,2498.1,4.00304231]
[1747467345838,1.26735537,2498.2,2498.0,4.00315681]
[1747467346141,1.26735537,2498.2,2497.9,4.0033349]
[1747467346340,1.26421632,2498.2,2498.1,4.00304231]
[1747467349855,1.26421632,2498.2,2498.0,4.00311992]
[1747467350060,1.26421632,2498.2,2498.1,4.00304231]
[1747467350600,1.52160795,2498.2,2497.8,11.52440548]
[1747467350738,1.81421632,2498.2,2498.1,4.00304231]
[1747467352166,1.81421632,2498.2,2498.0,4.00313135]
[1747467352345,1.81421632,2498.2,2498.1,4.00304231]
[1747467354873,1.80663939,2498.2,2498.1,4.00304231]
[1747467360356,1.81735537,2498.5,2498.2,4.00288207]
[1747467360563,1.81735537,2498.5,2498.1,4.00304231]
[1747467360564,2.86888834,2498.5,2498.3,4.0027192]
[1747467360763,1.81035782,2498.5,2498.3,4.0027192]
[1747467360991,1.81035782,2498.5,2497.8,11.52444702]
[1747467360992,4.77456948,2498.4,2497.8,4.00337805]
[1747467361162,1.26735537,2498.2,2497.9,4.00335629]
[1747467362584,0.55,2498.1,2497.9,4.00335629]
[1747467363891,0.55,2498.1,2497.8,4.00344301]
[1747467364362,0.55,2498.1,2497.9,4.00332379]
[1747467364563,0.55,2498.1,2497.8,4.0035013]
[1747467364763,0.55,2498.1,2497.7,11.52662919]
[1747467365063,0.55,2498.1,2497.8,4.00351688]
[1747467365491,0.55,2498.1,2497.6,0.8219]
[1747467365667,1.26735537,2497.8,2497.4,7.519]
[1747467366006,1.26735537,2497.6,2497.4,7.519]
[1747467366308,1.25874577,2497.6,2497.4,7.519]
[1747467367094,0.7726,2497.5,2497.2,4.00448142]
[1747467367419,1.25874577,2497.6,2497.2,4.00448142]
[1747467369702,1.25874577,2497.6,2497.3,4.00419689]
[1747467370073,1.73679555,2497.6,2497.2,4.00440607]
[1747467371193,2.45187313,2497.6,2497.2,4.00440607]
[1747467371398,2.45187313,2497.6,2497.1,4.00456399]
[1747467371916,2.44646661,2497.6,2497.1,4.00456399]
[1747467373910,0.47804978,2497.6,2497.5,4.004004]
[1747467375012,0.47804978,2497.6,2497.5,12.300604]
[1747467375405,0.47804978,2498.0,2497.8,4.00347748]
[1747467375601,0.47804978,2498.0,2497.7,4.00360933]
[1747467375899,1.74540515,2498.0,2497.5,12.30046508]
[1747467376084,1.74540515,2498.0,2497.6,4.00375849]
[1747467377717,1.74011971,2498.0,2497.6,4.00375849]
[1747467378821,1.74011971,2498.0,2497.3,4.82960542]
[1747467378822,1.26735537,2497.8,2497.3,4.82960542]
[1747467379020,1.26735537,2497.6,2497.3,7.52]
[1747467379241,1.26735537,2497.6,2497.1,4.82990957]
[1747467379517,1.26735537,2497.6,2497.3,4.00429372]
[1747467379837,0.8181,2497.7,2497.4,4.00408946]
[1747467379987,0.8181,2497.7,2497.3,4.0042492]
[1747467381012,0.8181,2497.7,2497.4,4.0041018]
[1747467381579,1.26735537,2497.6,2497.4,4.0041018]
[1747467382164,1.26735537,2497.6,2497.1,7.52]
[1747467382425,1.26735537,2497.4,2497.0,7.52]
[1747467382585,1.26735537,2497.4,2497.2,4.00447723]
[1747467383051,1.26735537,2497.6,2497.1,0.8253]
[1747467383240,0.63784824,2497.7,2497.4,4.00405232]
[1747467383440,0.63784824,2497.7,2497.5,4.00396927]
[1747467384230,0.63784824,2497.7,2497.4,4.00409442]
[1747467384912,0.63784824,2497.7,2497.3,4.00426949]
[1747467385107,1.90520361,2497.8,2497.6,4.00373338]
[1747467386161,0.63784824,2497.8,2497.7,4.82898338]
[1747467387619,4.52921907,2498.9,2498.1,4.00304231]
[1747467387620,0.63784824,2498.2,2498.1,4.00304231]
[1747467387814,0.63784824,2498.2,2498.1,11.52304231]
[1747467389454,2.08705537,2498.6,2498.2,4.00272915]
[1747467391464,0.8197,2498.6,2498.3,4.00271532]
[1747467391626,2.08705537,2498.6,2498.3,4.00271532]
[1747467391966,2.07973761,2498.6,2498.3,4.00271532]
[1747467396087,6.08205398,2498.6,2498.1,7.52]
[1747467396387,1.26735537,2498.4,2498.1,7.52]
[1747467396764,2.06945537,2498.2,2498.1,7.515]
[1747467396965,6.07233744,2498.2,2497.7,4.00365165]
[1747467397146,7.13482871,2498.2,2497.8,7.515]
[1747467397766,7.12675145,2498.2,2497.8,7.515]
[1747467398894,4.55312814,2498.1,2497.9,7.515]
[1747467399296,4.00320256,2498.0,2497.9,7.515]
[1747467399472,4.55320256,2498.0,2497.9,7.515]
[1747467399665,6.4779998,2498.0,2497.9,7.515]
[1747467399863,15.74535517,2498.0,2497.9,7.515]
[1747467400600,10.47479724,2498.0,2497.9,7.515]
[1747467400975,9.332,2498.0,2497.9,7.515]
[1747467401197,0.782,2498.2,2497.9,11.51828897]
[1747467401393,0.63784824,2498.0,2497.9,11.51828897]
[1747467401569,0.63784824,2498.0,2497.9,7.515]
[1747467401905,0.63784824,2498.0,2497.9,11.51836282]
[1747467402982,0.63784824,2498.0,2497.9,7.515]
[1747467403507,0.782,2498.2,2498.0,0.00627308]
[1747467403872,0.55,2498.3,2498.0,0.00627308]
[1747467405205,6.07975726,2498.3,2498.0,0.00627308]
[1747467407187,0.63784824,2498.4,2498.0,0.00627308]
[1747467407375,0.55,2498.3,2498.0,0.00627308]
[1747467407702,0.7569,2498.2,2498.0,7.52227308]
[1747467408507,4.75980179,2498.2,2498.0,7.52227308]
[1747467408899,0.55,2498.1,2498.0,7.52227308]
[1747467409523,0.54449742,2498.1,2498.0,7.52227308]
[1747467410988,4.54753973,2498.1,2498.0,7.52227308]
[1747467411309,4.54753973,2498.1,2498.0,0.00627308]
[1747467411475,6.5717951,2498.1,2498.0,0.00627308]
[1747467411676,7.80522664,2498.1,2498.0,0.00627308]
[1747467415029,2.53027399,2498.1,2498.0,0.00627308]
[1747467415621,3.16812223,2498.1,2498.0,0.00627308]
[1747467420193,2.41122223,2498.1,2498.0,0.00627308]
[1747467420536,0.63784824,2498.1,2498.0,4.83147564]
[1747467420742,0.63784824,2498.1,2498.0,4.87150426]
[1747467420903,0.63298808,2498.1,2498.0,4.87150426]
[1747467421129,0.63298808,2498.1,2498.0,4.83147564]
[1747467421302,0.63298808,2498.1,2498.0,4.87150233]
[1747467422099,0.63298808,2498.1,2498.0,4.83147564]
[1747467423125,0.63298808,2498.1,2498.0,4.87149978]
[1747467423323,0.63298808,2498.1,2498.0,4.83147564]